[Event "Late-Titled-Tuesday-Blitz-October-03-2023"]
[Site "Chess.com"]
[Date "2023.10.03"]
[Round "9"]
[White "Alina_Gumerovna"]
[Black "campochess"]
[Result "0-1"]
[WhiteElo "2103"]
[BlackElo "2140"]
[TimeControl "180+1"]
[EndTime "15:38:48 PDT"]
[Termination "campochess won by resignation"]

1. e4 {[%clk 0:03:00.2]} 1... c5 {[%clk 0:02:57.1]} 2. Nf3 {[%clk 0:02:58.6]}
2... Nc6 {[%clk 0:02:57.2]} 3. d4 {[%clk 0:02:58.6]} 3... cxd4 {[%clk
0:02:57.1]} 4. Nxd4 {[%clk 0:02:58.7]} 4... e5 {[%clk 0:02:57.1]} 5. Nb5 {[%clk
0:02:55.1]} 5... a6 {[%clk 0:02:57.2]} 6. N5a3 {[%clk 0:02:53.3]} 6... Bc5
{[%clk 0:02:56.9]} 7. Bd3 {[%clk 0:02:44.7]} 7... Qh4 {[%clk 0:02:55.9]} 8. O-O
{[%clk 0:02:44.8]} 8... Nf6 {[%clk 0:02:55.8]} 9. c3 {[%clk 0:02:16.4]} 9... d6
{[%clk 0:02:52.4]} 10. Qc2 {[%clk 0:02:14.9]} 10... Bh3 {[%clk 0:02:42.8]} 11.
gxh3 {[%clk 0:01:50.2]} 11... Qxh3 {[%clk 0:02:42]} 12. Nd2 {[%clk 0:01:50.5]}
12... Ng4 {[%clk 0:02:40.3]} 13. Nf3 {[%clk 0:01:41.9]} 13... Qxf3 {[%clk
0:02:39.3]} 14. b4 {[%clk 0:01:35.3]} 14... Ba7 {[%clk 0:02:32.7]} 15. b5 {[%clk
0:01:33.9]} 15... Ne7 {[%clk 0:02:26.5]} 16. bxa6 {[%clk 0:01:29.6]} 16... bxa6
{[%clk 0:02:23.8]} 17. Bxa6 {[%clk 0:01:26.4]} 17... O-O {[%clk 0:02:22.8]} 18.
Bb7 {[%clk 0:01:23.9]} 18... Rab8 {[%clk 0:02:15.4]} 19. Bd5 {[%clk 0:01:15.5]}
19... Nxd5 {[%clk 0:02:13.7]} 20. exd5 {[%clk 0:01:14]} 20... f5 {[%clk
0:02:13]} 21. Bg5 {[%clk 0:00:44.2]} 21... f4 {[%clk 0:01:55.3]} 22. Rab1 {[%clk
0:00:30.5]} 22... Qh3 {[%clk 0:01:53.2]} 23. Bh4 {[%clk 0:00:25.3]} 23... Qxh4
{[%clk 0:01:52]} 24. Rxb8 {[%clk 0:00:22.3]} 24... Rxb8 {[%clk 0:01:50.5]} 25.
Rd1 {[%clk 0:00:18.4]} 25... Qxh2+ {[%clk 0:01:47.3]} 26. Kf1 {[%clk 0:00:18.6]}
26... f3 {[%clk 0:01:42.3]} 27. Ke1 {[%clk 0:00:17.9]} 27... Qg1+ {[%clk
0:01:40.7]} 28. Kd2 {[%clk 0:00:17.7]} 28... Qxf2+ {[%clk 0:01:40.6]} 29. Kc1
{[%clk 0:00:18.2]} 29... Be3+ {[%clk 0:01:39.5]} 0-1

[Event "Late-Titled-Tuesday-Blitz-October-03-2023"]
[Site "Chess.com"]
[Date "2023.10.03"]
[Round "9"]
[White "RichardLeyvaP"]
[Black "lemures27"]
[Result "1-0"]
[WhiteElo "2626"]
[BlackElo "2479"]
[TimeControl "180+1"]
[EndTime "15:39:17 PDT"]
[Termination "RichardLeyvaP won by checkmate"]

1. e4 {[%clk 0:02:59.9]} 1... c5 {[%clk 0:02:57.5]} 2. Nf3 {[%clk 0:02:59.7]}
2... d6 {[%clk 0:02:56.9]} 3. d4 {[%clk 0:02:59.2]} 3... cxd4 {[%clk 0:02:57.1]}
4. Nxd4 {[%clk 0:02:59.8]} 4... Nf6 {[%clk 0:02:57.4]} 5. Nc3 {[%clk 0:02:59.9]}
5... a6 {[%clk 0:02:57.6]} 6. Bc4 {[%clk 0:03:00]} 6... e6 {[%clk 0:02:56.5]} 7.
Bb3 {[%clk 0:03:00.3]} 7... Qc7 {[%clk 0:02:55.2]} 8. g4 {[%clk 0:02:56.9]} 8...
h6 {[%clk 0:02:51.6]} 9. h4 {[%clk 0:02:52.9]} 9... Nc6 {[%clk 0:02:50.7]} 10.
f3 {[%clk 0:02:47.6]} 10... Be7 {[%clk 0:02:44.5]} 11. Be3 {[%clk 0:02:47.4]}
11... Nxd4 {[%clk 0:02:41.7]} 12. Qxd4 {[%clk 0:02:42.7]} 12... e5 {[%clk
0:02:41.7]} 13. Qd2 {[%clk 0:02:39.8]} 13... Be6 {[%clk 0:02:41]} 14. O-O-O
{[%clk 0:02:39.9]} 14... Rc8 {[%clk 0:02:38.4]} 15. Kb1 {[%clk 0:02:39.2]} 15...
b5 {[%clk 0:02:34.3]} 16. g5 {[%clk 0:02:37.9]} 16... b4 {[%clk 0:02:28.9]} 17.
Ne2 {[%clk 0:01:44.3]} 17... Bxb3 {[%clk 0:02:15.1]} 18. cxb3 {[%clk 0:01:43.7]}
18... hxg5 {[%clk 0:02:15]} 19. hxg5 {[%clk 0:01:42.7]} 19... Rxh1 {[%clk
0:02:13.6]} 20. Rxh1 {[%clk 0:01:42.7]} 20... Nd7 {[%clk 0:02:13.5]} 21. f4
{[%clk 0:01:27.3]} 21... a5 {[%clk 0:02:09.1]} 22. f5 {[%clk 0:01:25.3]} 22...
Bf8 {[%clk 0:02:04.9]} 23. Ng3 {[%clk 0:01:22.9]} 23... Qc6 {[%clk 0:02:00.6]}
24. Qd3 {[%clk 0:01:22]} 24... Be7 {[%clk 0:01:43.8]} 25. g6 {[%clk 0:01:20.4]}
25... fxg6 {[%clk 0:01:40.3]} 26. fxg6 {[%clk 0:01:20.6]} 26... Nf6 {[%clk
0:01:40.3]} 27. Rc1 {[%clk 0:01:12.3]} 27... Qb7 {[%clk 0:01:30.7]} 28. Rxc8+
{[%clk 0:01:10.7]} 28... Qxc8 {[%clk 0:01:30.7]} 29. Nf5 {[%clk 0:01:11.3]}
29... Qc6 {[%clk 0:01:23.4]} 30. Nxg7+ {[%clk 0:01:08.7]} 30... Kd7 {[%clk
0:01:24]} 31. Nf5 {[%clk 0:01:02.5]} 31... Nxe4 {[%clk 0:01:13.6]} 32. g7 {[%clk
0:00:57]} 32... Nf6 {[%clk 0:01:12.5]} 33. Nh6 {[%clk 0:00:55.9]} 33... Qh1+
{[%clk 0:01:04.6]} 34. Bc1 {[%clk 0:00:55.9]} 34... Qg2 {[%clk 0:01:03]} 35.
Qb5+ {[%clk 0:00:54.4]} 35... Ke6 {[%clk 0:01:01.6]} 36. Qc4+ {[%clk 0:00:44.4]}
36... d5 {[%clk 0:01:00.9]} 37. Qc8+ {[%clk 0:00:43.7]} 37... Kd6 {[%clk
0:00:55.7]} 38. Nf5# {[%clk 0:00:41.1]} 1-0

[Event "Late-Titled-Tuesday-Blitz-October-03-2023"]
[Site "Chess.com"]
[Date "2023.10.03"]
[Round "9"]
[White "marik_spb"]
[Black "angelgab3"]
[Result "1-0"]
[WhiteElo "2398"]
[BlackElo "2541"]
[TimeControl "180+1"]
[EndTime "15:39:17 PDT"]
[Termination "marik_spb won by resignation"]

1. e4 {[%clk 0:03:00.9]} 1... e5 {[%clk 0:02:59.7]} 2. Nf3 {[%clk 0:02:54.6]}
2... Nc6 {[%clk 0:02:59.6]} 3. Bc4 {[%clk 0:02:54.5]} 3... Bc5 {[%clk
0:02:59.3]} 4. c3 {[%clk 0:02:54.4]} 4... Nf6 {[%clk 0:02:59.6]} 5. d4 {[%clk
0:02:54.6]} 5... exd4 {[%clk 0:03:00.5]} 6. e5 {[%clk 0:02:55]} 6... d5 {[%clk
0:03:00.6]} 7. Bb5 {[%clk 0:02:55.5]} 7... Ne4 {[%clk 0:03:00.6]} 8. cxd4 {[%clk
0:02:56.1]} 8... Bb6 {[%clk 0:03:01.4]} 9. Nc3 {[%clk 0:02:56.2]} 9... O-O
{[%clk 0:03:00.3]} 10. Be3 {[%clk 0:02:56.6]} 10... Bf5 {[%clk 0:03:00.3]} 11.
Rc1 {[%clk 0:02:46.6]} 11... Ne7 {[%clk 0:02:54.3]} 12. O-O {[%clk 0:02:43.2]}
12... Bg4 {[%clk 0:02:46]} 13. h3 {[%clk 0:02:40]} 13... Bh5 {[%clk 0:02:46.2]}
14. Be2 {[%clk 0:02:39.1]} 14... f6 {[%clk 0:02:41.9]} 15. exf6 {[%clk
0:02:35.3]} 15... Nxf6 {[%clk 0:02:38.1]} 16. Ne5 {[%clk 0:02:33.8]} 16... Bxe2
{[%clk 0:02:34.3]} 17. Qxe2 {[%clk 0:02:32.1]} 17... Nf5 {[%clk 0:02:34.4]} 18.
Qd3 {[%clk 0:02:28.5]} 18... Nd6 {[%clk 0:02:31]} 19. Bg5 {[%clk 0:02:24.4]}
19... c6 {[%clk 0:02:28.7]} 20. Na4 {[%clk 0:02:00.9]} 20... Qe8 {[%clk
0:02:19.3]} 21. f4 {[%clk 0:01:47.6]} 21... Nfe4 {[%clk 0:02:15.6]} 22. Rce1
{[%clk 0:01:21.9]} 22... Nf7 {[%clk 0:01:48.8]} 23. Bh4 {[%clk 0:00:59.5]} 23...
Nxe5 {[%clk 0:01:10.3]} 24. fxe5 {[%clk 0:01:00.4]} 24... Qh5 {[%clk 0:01:09.1]}
25. Be7 {[%clk 0:00:42.4]} 25... Rxf1+ {[%clk 0:01:06.9]} 26. Rxf1 {[%clk
0:00:43.3]} 26... Re8 {[%clk 0:01:07.3]} 27. Bb4 {[%clk 0:00:36.1]} 27... h6
{[%clk 0:01:02.7]} 28. Nxb6 {[%clk 0:00:33.8]} 28... axb6 {[%clk 0:01:02.7]} 29.
Qf3 {[%clk 0:00:29.3]} 29... c5 {[%clk 0:00:55.7]} 30. Qxh5 {[%clk 0:00:28.3]}
1-0

[Event "Late-Titled-Tuesday-Blitz-October-03-2023"]
[Site "Chess.com"]
[Date "2023.10.03"]
[Round "9"]
[White "PNEPaul"]
[Black "APOKALIPSA13"]
[Result "0-1"]
[WhiteElo "1960"]
[BlackElo "2164"]
[TimeControl "180+1"]
[EndTime "15:39:18 PDT"]
[Termination "APOKALIPSA13 won by resignation"]

1. e4 {[%clk 0:03:00.9]} 1... e5 {[%clk 0:02:57.6]} 2. Nf3 {[%clk 0:03:00.6]}
2... f5 {[%clk 0:02:57.4]} 3. Nxe5 {[%clk 0:02:53.7]} 3... Qf6 {[%clk
0:02:56.6]} 4. d4 {[%clk 0:02:52]} 4... d6 {[%clk 0:02:56.4]} 5. Nc4 {[%clk
0:02:51.8]} 5... fxe4 {[%clk 0:02:56.8]} 6. Ne3 {[%clk 0:02:51.7]} 6... Qg6
{[%clk 0:02:56.5]} 7. Be2 {[%clk 0:02:49.8]} 7... Nf6 {[%clk 0:02:56.8]} 8. c4
{[%clk 0:02:46.4]} 8... Be7 {[%clk 0:02:56.2]} 9. Nc3 {[%clk 0:02:45.4]} 9...
O-O {[%clk 0:02:56.2]} 10. Qc2 {[%clk 0:02:29.8]} 10... Nc6 {[%clk 0:02:26]} 11.
d5 {[%clk 0:02:27]} 11... Nd4 {[%clk 0:02:20.4]} 12. Qd1 {[%clk 0:02:25.4]}
12... c5 {[%clk 0:02:12.2]} 13. dxc6 {[%clk 0:02:21.5]} 13... Nxc6 {[%clk
0:02:12.3]} 14. Ncd5 {[%clk 0:01:57.4]} 14... Bd8 {[%clk 0:01:56.5]} 15. Bd2
{[%clk 0:01:53.4]} 15... Nxd5 {[%clk 0:01:52.9]} 16. cxd5 {[%clk 0:01:48.7]}
16... Ne5 {[%clk 0:01:51.7]} 17. Bc3 {[%clk 0:01:44.8]} 17... Bb6 {[%clk
0:01:35.2]} 18. Qd2 {[%clk 0:01:40]} 18... Bd7 {[%clk 0:01:26.8]} 19. O-O-O
{[%clk 0:01:23.9]} 19... Rxf2 {[%clk 0:01:23.9]} 20. Bxe5 {[%clk 0:01:10.9]}
20... dxe5 {[%clk 0:01:24.8]} 21. Rdf1 {[%clk 0:00:51.2]} 21... Rc8+ {[%clk
0:01:25.7]} 22. Kb1 {[%clk 0:00:50.2]} 22... Rxg2 {[%clk 0:01:04.8]} 23. Nxg2
{[%clk 0:00:24]} 23... Qxg2 {[%clk 0:00:54.8]} 24. Rhg1 {[%clk 0:00:18.4]} 24...
Bxg1 {[%clk 0:00:53]} 0-1

[Event "Late-Titled-Tuesday-Blitz-October-03-2023"]
[Site "Chess.com"]
[Date "2023.10.03"]
[Round "9"]
[White "vanyakuba"]
[Black "Likvidator228"]
[Result "0-1"]
[WhiteElo "2366"]
[BlackElo "2540"]
[TimeControl "180+1"]
[EndTime "15:39:33 PDT"]
[Termination "Likvidator228 won by resignation"]

1. e4 {[%clk 0:03:00.9]} 1... d6 {[%clk 0:02:56.4]} 2. d4 {[%clk 0:03:00.9]}
2... Nf6 {[%clk 0:02:55.7]} 3. Nc3 {[%clk 0:03:01.6]} 3... Nbd7 {[%clk
0:02:56.1]} 4. f4 {[%clk 0:02:58.5]} 4... e5 {[%clk 0:02:56.5]} 5. dxe5 {[%clk
0:02:58.3]} 5... dxe5 {[%clk 0:02:56.8]} 6. Bc4 {[%clk 0:02:58.7]} 6... Bd6
{[%clk 0:02:52.9]} 7. f5 {[%clk 0:02:48.6]} 7... Bb4 {[%clk 0:02:43.9]} 8. Nf3
{[%clk 0:02:28.5]} 8... O-O {[%clk 0:02:36.5]} 9. Bg5 {[%clk 0:02:26.5]} 9... h6
{[%clk 0:02:33.9]} 10. Bh4 {[%clk 0:02:26.4]} 10... Qe7 {[%clk 0:02:33.7]} 11.
Qe2 {[%clk 0:02:04.7]} 11... c6 {[%clk 0:02:22.8]} 12. O-O {[%clk 0:01:48.4]}
12... b5 {[%clk 0:02:19.3]} 13. Bb3 {[%clk 0:01:48]} 13... Bxc3 {[%clk
0:02:18.2]} 14. bxc3 {[%clk 0:01:46.9]} 14... Qc5+ {[%clk 0:02:18.8]} 15. Bf2
{[%clk 0:01:40.6]} 15... Qxc3 {[%clk 0:02:18.9]} 16. h3 {[%clk 0:01:01.2]} 16...
a5 {[%clk 0:02:17.2]} 17. a3 {[%clk 0:00:42]} 17... Ba6 {[%clk 0:02:12.9]} 18.
Be1 {[%clk 0:00:37.2]} 18... Qc5+ {[%clk 0:02:12]} 19. Bf2 {[%clk 0:00:37.1]}
19... Qe7 {[%clk 0:02:12]} 20. g4 {[%clk 0:00:29.3]} 20... Nc5 {[%clk
0:02:09.3]} 21. Nd2 {[%clk 0:00:16.4]} 21... Nxb3 {[%clk 0:01:59]} 22. cxb3
{[%clk 0:00:14.7]} 22... b4 {[%clk 0:01:52.8]} 23. Nc4 {[%clk 0:00:14.9]} 23...
bxa3 {[%clk 0:01:46]} 24. Qe3 {[%clk 0:00:14.7]} 24... Bxc4 {[%clk 0:01:45.3]}
25. bxc4 {[%clk 0:00:14.7]} 25... Rfd8 {[%clk 0:01:43.5]} 26. Rxa3 {[%clk
0:00:14.3]} 26... a4 {[%clk 0:01:43.7]} 27. Rfa1 {[%clk 0:00:12.5]} 27... Rd4
{[%clk 0:01:41.5]} 28. Rxa4 {[%clk 0:00:12.5]} 28... Rxa4 {[%clk 0:01:41.3]} 29.
Rxa4 {[%clk 0:00:13.4]} 29... Rxe4 {[%clk 0:01:41.7]} 30. Qf3 {[%clk 0:00:07.4]}
30... Qb7 {[%clk 0:01:37.4]} 31. Ra1 {[%clk 0:00:05.7]} 31... Rxc4 {[%clk
0:01:33.2]} 32. Rd1 {[%clk 0:00:04.6]} 32... Nd5 {[%clk 0:01:24.3]} 33. h4
{[%clk 0:00:02.6]} 33... Qb4 {[%clk 0:01:20.6]} 34. g5 {[%clk 0:00:02.7]} 34...
hxg5 {[%clk 0:01:19.6]} 35. hxg5 {[%clk 0:00:03]} 35... Rg4+ {[%clk 0:01:20.1]}
36. Kh2 {[%clk 0:00:02.9]} 36... Rxg5 {[%clk 0:01:20.3]} 0-1

[Event "Late-Titled-Tuesday-Blitz-October-03-2023"]
[Site "Chess.com"]
[Date "2023.10.03"]
[Round "9"]
[White "egnfanclub"]
[Black "elmusmolamas"]
[Result "0-1"]
[WhiteElo "2377"]
[BlackElo "2519"]
[TimeControl "180+1"]
[EndTime "15:39:34 PDT"]
[Termination "elmusmolamas won by resignation"]

1. e4 {[%clk 0:03:00.9]} 1... e6 {[%clk 0:02:58]} 2. d4 {[%clk 0:03:00.1]} 2...
d5 {[%clk 0:02:58.9]} 3. Nc3 {[%clk 0:02:59.8]} 3... dxe4 {[%clk 0:02:55.5]} 4.
Nxe4 {[%clk 0:03:00.7]} 4... Nf6 {[%clk 0:02:55.6]} 5. Nxf6+ {[%clk 0:03:00.8]}
5... gxf6 {[%clk 0:02:56]} 6. Nf3 {[%clk 0:03:01.7]} 6... a6 {[%clk 0:02:50.5]}
7. Bd3 {[%clk 0:02:54.3]} 7... Be7 {[%clk 0:02:45.5]} 8. O-O {[%clk 0:02:51.3]}
8... f5 {[%clk 0:02:46.2]} 9. Ne5 {[%clk 0:02:45.9]} 9... Nd7 {[%clk 0:02:39.7]}
10. Bf4 {[%clk 0:02:20.8]} 10... Nxe5 {[%clk 0:02:23.2]} 11. Bxe5 {[%clk
0:02:19]} 11... Bf6 {[%clk 0:02:24]} 12. Qe2 {[%clk 0:02:09.9]} 12... O-O {[%clk
0:02:19.3]} 13. Rad1 {[%clk 0:01:48.3]} 13... Bd7 {[%clk 0:02:13.9]} 14. c4
{[%clk 0:01:34.3]} 14... Kh8 {[%clk 0:02:02.4]} 15. Qh5 {[%clk 0:01:26.7]} 15...
Bxe5 {[%clk 0:01:56.1]} 16. dxe5 {[%clk 0:01:27.6]} 16... Qe7 {[%clk 0:01:54.9]}
17. Rfe1 {[%clk 0:01:17.6]} 17... Bc6 {[%clk 0:01:50.8]} 18. f4 {[%clk
0:00:47.1]} 18... Rg8 {[%clk 0:01:46.6]} 19. Bf1 {[%clk 0:00:40]} 19... Rg4
{[%clk 0:01:37.6]} 20. Qh6 {[%clk 0:00:25.5]} 20... Rag8 {[%clk 0:01:36.1]} 21.
g3 {[%clk 0:00:24.6]} 21... Rh4 {[%clk 0:01:19]} 22. Qf6+ {[%clk 0:00:19.9]}
22... Qxf6 {[%clk 0:01:18.6]} 23. exf6 {[%clk 0:00:20.8]} 23... Rxf4 {[%clk
0:01:19.1]} 24. Bg2 {[%clk 0:00:17.6]} 24... Rxc4 {[%clk 0:01:16.9]} 25. Bxc6
{[%clk 0:00:16]} 25... Rxc6 {[%clk 0:01:16.5]} 26. Rd7 {[%clk 0:00:16.9]} 26...
Rf8 {[%clk 0:01:14.8]} 27. Red1 {[%clk 0:00:16.1]} 27... h6 {[%clk 0:01:09.6]}
28. Rd8 {[%clk 0:00:15.5]} 28... Rxd8 {[%clk 0:01:09.6]} 29. Rxd8+ {[%clk
0:00:16.4]} 29... Kh7 {[%clk 0:01:10.4]} 30. Rb8 {[%clk 0:00:10.1]} 30... Rc1+
{[%clk 0:01:07.4]} 31. Kg2 {[%clk 0:00:09.7]} 31... Rc2+ {[%clk 0:01:08.3]} 32.
Kh3 {[%clk 0:00:10.2]} 32... Rxb2 {[%clk 0:01:09.2]} 33. Rc8 {[%clk 0:00:08.5]}
33... Rc2 {[%clk 0:01:05.6]} 0-1

[Event "Late-Titled-Tuesday-Blitz-October-03-2023"]
[Site "Chess.com"]
[Date "2023.10.03"]
[Round "9"]
[White "ljuks68"]
[Black "Nf3c5"]
[Result "0-1"]
[WhiteElo "2378"]
[BlackElo "2567"]
[TimeControl "180+1"]
[EndTime "15:39:37 PDT"]
[Termination "Nf3c5 won by resignation"]

1. e4 {[%clk 0:02:50.3]} 1... c5 {[%clk 0:02:57.4]} 2. Nf3 {[%clk 0:02:50.3]}
2... Nc6 {[%clk 0:02:57.2]} 3. d4 {[%clk 0:02:50.8]} 3... cxd4 {[%clk
0:02:56.6]} 4. Nxd4 {[%clk 0:02:51.5]} 4... e5 {[%clk 0:02:56.4]} 5. Nb5 {[%clk
0:02:51.1]} 5... d6 {[%clk 0:02:56.5]} 6. c4 {[%clk 0:02:50.5]} 6... Be7 {[%clk
0:02:53.7]} 7. N1c3 {[%clk 0:02:50.4]} 7... a6 {[%clk 0:02:53.6]} 8. Na3 {[%clk
0:02:49.8]} 8... f5 {[%clk 0:02:54.5]} 9. Bd3 {[%clk 0:02:47.1]} 9... f4 {[%clk
0:02:54.7]} 10. g3 {[%clk 0:02:46]} 10... Nf6 {[%clk 0:02:47.6]} 11. gxf4 {[%clk
0:02:43.1]} 11... exf4 {[%clk 0:02:47.1]} 12. Bxf4 {[%clk 0:02:42.9]} 12... O-O
{[%clk 0:02:44.9]} 13. Bg3 {[%clk 0:02:21.8]} 13... Ng4 {[%clk 0:02:42.2]} 14.
Be2 {[%clk 0:02:07.7]} 14... Nxf2 {[%clk 0:02:37.4]} 15. Bxf2 {[%clk 0:01:56.5]}
15... Rxf2 {[%clk 0:02:34.7]} 16. Kxf2 {[%clk 0:01:56.8]} 16... Bh4+ {[%clk
0:02:33.6]} 17. Kg2 {[%clk 0:01:22.2]} 17... Qg5+ {[%clk 0:02:21.9]} 18. Bg4
{[%clk 0:01:15.6]} 18... Ne5 {[%clk 0:02:17.6]} 19. h3 {[%clk 0:00:33.8]} 19...
h5 {[%clk 0:02:07.3]} 20. Rg1 {[%clk 0:00:24.3]} 20... hxg4 {[%clk 0:01:57.4]}
21. Kh1 {[%clk 0:00:23]} 21... g3 {[%clk 0:01:38.2]} 22. Qf1 {[%clk 0:00:16.4]}
22... Be6 {[%clk 0:01:35.3]} 23. Qg2 {[%clk 0:00:12.6]} 23... Nd3 {[%clk
0:01:18.3]} 24. Rab1 {[%clk 0:00:08.4]} 24... Rf8 {[%clk 0:00:55]} 25. Rbf1
{[%clk 0:00:07.5]} 25... Nf2+ {[%clk 0:00:50.8]} 26. Rxf2 {[%clk 0:00:07.6]}
26... Rxf2 {[%clk 0:00:50.5]} 0-1

[Event "Late-Titled-Tuesday-Blitz-October-03-2023"]
[Site "Chess.com"]
[Date "2023.10.03"]
[Round "9"]
[White "zverr1"]
[Black "Road2GM3000"]
[Result "0-1"]
[WhiteElo "2496"]
[BlackElo "2384"]
[TimeControl "180+1"]
[EndTime "15:39:40 PDT"]
[Termination "Road2GM3000 won on time"]

1. e4 {[%clk 0:02:55.3]} 1... c5 {[%clk 0:02:55.2]} 2. Nf3 {[%clk 0:02:55.1]}
2... d6 {[%clk 0:02:55.1]} 3. Nc3 {[%clk 0:02:55.3]} 3... Nf6 {[%clk 0:02:55.3]}
4. e5 {[%clk 0:02:55.7]} 4... dxe5 {[%clk 0:02:51.5]} 5. Nxe5 {[%clk 0:02:56.6]}
5... e6 {[%clk 0:02:50.4]} 6. Bb5+ {[%clk 0:02:55.6]} 6... Nbd7 {[%clk 0:02:50]}
7. d4 {[%clk 0:02:54.1]} 7... a6 {[%clk 0:02:47.1]} 8. Bxd7+ {[%clk 0:02:53.9]}
8... Nxd7 {[%clk 0:02:44.5]} 9. Qf3 {[%clk 0:02:46.5]} 9... Nxe5 {[%clk
0:02:40.8]} 10. dxe5 {[%clk 0:02:45]} 10... Qc7 {[%clk 0:02:37]} 11. Bf4 {[%clk
0:02:39.8]} 11... Bd7 {[%clk 0:02:36.2]} 12. O-O-O {[%clk 0:02:34.7]} 12...
O-O-O {[%clk 0:02:36.2]} 13. Bg5 {[%clk 0:02:20.3]} 13... Bc6 {[%clk 0:02:14.2]}
14. Rxd8+ {[%clk 0:01:39.1]} 14... Qxd8 {[%clk 0:02:12.9]} 15. Qxc6+ {[%clk
0:01:40]} 15... bxc6 {[%clk 0:02:12.8]} 16. Bxd8 {[%clk 0:01:40.2]} 16... Kxd8
{[%clk 0:02:13.7]} 17. Rd1+ {[%clk 0:01:26.9]} 17... Kc7 {[%clk 0:02:14.1]} 18.
Ne4 {[%clk 0:01:27.2]} 18... Be7 {[%clk 0:02:07.6]} 19. b3 {[%clk 0:01:04.9]}
19... c4 {[%clk 0:01:53.6]} 20. bxc4 {[%clk 0:00:57]} 20... Ba3+ {[%clk
0:01:52.7]} 21. Kd2 {[%clk 0:00:55.2]} 21... Rb8 {[%clk 0:01:49.6]} 22. Re1
{[%clk 0:00:22.9]} 22... Rb2 {[%clk 0:01:46.5]} 23. Re3 {[%clk 0:00:22.2]} 23...
Rxa2 {[%clk 0:01:35.7]} 24. Rf3 {[%clk 0:00:21.5]} 24... Bb4+ {[%clk 0:01:26.4]}
25. Kd3 {[%clk 0:00:12.5]} 25... a5 {[%clk 0:01:16.7]} 26. Rxf7+ {[%clk
0:00:11.9]} 26... Kb6 {[%clk 0:01:17.4]} 27. Ng5 {[%clk 0:00:05.1]} 27... a4
{[%clk 0:01:05]} 28. Nxe6 {[%clk 0:00:05.3]} 28... Ra3+ {[%clk 0:01:02.1]} 29.
Ke2 {[%clk 0:00:03.5]} 29... Rc3 {[%clk 0:00:58.6]} 30. Rxg7 {[%clk 0:00:01.6]}
30... a3 {[%clk 0:00:59.2]} 31. Rg8 {[%clk 0:00:01.1]} 31... a2 {[%clk
0:00:59.9]} 0-1

[Event "Late-Titled-Tuesday-Blitz-October-03-2023"]
[Site "Chess.com"]
[Date "2023.10.03"]
[Round "9"]
[White "Garmendiarov"]
[Black "chessmoo"]
[Result "1-0"]
[WhiteElo "2342"]
[BlackElo "2450"]
[TimeControl "180+1"]
[EndTime "15:39:49 PDT"]
[Termination "Garmendiarov won on time"]

1. d4 {[%clk 0:03:00.9]} 1... d5 {[%clk 0:02:58.4]} 2. Bf4 {[%clk 0:03:00.2]}
2... Nf6 {[%clk 0:02:52.2]} 3. e3 {[%clk 0:03:00.3]} 3... c6 {[%clk 0:02:48]} 4.
c4 {[%clk 0:02:59.9]} 4... Bf5 {[%clk 0:02:43.2]} 5. Nc3 {[%clk 0:03:00.1]} 5...
e6 {[%clk 0:02:42.3]} 6. Qb3 {[%clk 0:02:59.7]} 6... Qb6 {[%clk 0:02:42.2]} 7.
c5 {[%clk 0:03:00.1]} 7... Qxb3 {[%clk 0:02:42]} 8. axb3 {[%clk 0:03:01]} 8...
Be7 {[%clk 0:02:32.7]} 9. h3 {[%clk 0:02:57.8]} 9... O-O {[%clk 0:02:31.8]} 10.
b4 {[%clk 0:02:58.3]} 10... a6 {[%clk 0:02:28.9]} 11. b5 {[%clk 0:02:56.7]}
11... cxb5 {[%clk 0:02:29.8]} 12. Bxb5 {[%clk 0:02:55.4]} 12... Nc6 {[%clk
0:02:16.3]} 13. Ba4 {[%clk 0:02:54.3]} 13... Rfd8 {[%clk 0:01:38.1]} 14. Nf3
{[%clk 0:02:50.7]} 14... Bd3 {[%clk 0:01:35.7]} 15. Kd2 {[%clk 0:02:20.7]} 15...
Bg6 {[%clk 0:01:30.9]} 16. Bxc6 {[%clk 0:02:07.9]} 16... bxc6 {[%clk 0:01:30.5]}
17. Ne5 {[%clk 0:02:08.5]} 17... Rdc8 {[%clk 0:01:28.2]} 18. Ra2 {[%clk
0:01:43.1]} 18... Ne8 {[%clk 0:00:42.7]} 19. Rha1 {[%clk 0:01:37.5]} 19... Nc7
{[%clk 0:00:41.3]} 20. Nxc6 {[%clk 0:01:34.8]} 20... Bf8 {[%clk 0:00:30.1]} 21.
Bxc7 {[%clk 0:01:29.4]} 21... Rxc7 {[%clk 0:00:31]} 22. Rxa6 {[%clk 0:01:29.6]}
22... Rac8 {[%clk 0:00:31.4]} 23. Ne5 {[%clk 0:01:26.8]} 23... Bf5 {[%clk
0:00:24.7]} 24. g4 {[%clk 0:01:25.7]} 24... Be4 {[%clk 0:00:17.4]} 25. Nxe4
{[%clk 0:01:24.8]} 25... dxe4 {[%clk 0:00:18.3]} 26. b4 {[%clk 0:01:24.4]} 26...
Rd8 {[%clk 0:00:15.5]} 27. Kc3 {[%clk 0:01:21]} 27... f6 {[%clk 0:00:15.7]} 28.
Nc4 {[%clk 0:01:20.2]} 28... e5 {[%clk 0:00:15.9]} 29. b5 {[%clk 0:01:13.3]}
29... exd4+ {[%clk 0:00:16.2]} 30. exd4 {[%clk 0:01:13.6]} 30... Bxc5 {[%clk
0:00:14.4]} 31. dxc5 {[%clk 0:01:10.8]} 31... Rxc5 {[%clk 0:00:15.3]} 32. Rc6
{[%clk 0:01:04.1]} 32... Rcd5 {[%clk 0:00:08]} 33. Ra7 {[%clk 0:01:00.7]} 33...
Rb8 {[%clk 0:00:07.9]} 34. Rcc7 {[%clk 0:01:00]} 34... Rbxb5 {[%clk 0:00:07.7]}
35. Rc8+ {[%clk 0:00:58.6]} 1-0